fUST/lending_fUST_20240625
["ID","MTS","AMOUNT","RATE_DAILY","PERIOD"]
[330311837,1719251445582,-500.0,0.00016712,2]
[330311838,1719251445592,-500.0,0.00016712,2]
[330311839,1719251445602,-865.51,0.00016712,2]
[330311840,1719251445611,-500.0,0.00016712,2]
[330311841,1719251445621,-500.0,0.00016712,2]
[330311842,1719251445629,-150.58206987,0.00016712,2]
[330311843,1719251445639,-515.16941586,0.00016712,2]
[330311844,1719251445648,-500.0,0.00016712,2]
[330311845,1719251445657,-573.12,0.00016712,2]
[330311846,1719251445668,-500.0,0.00016712,2]
[330311847,1719251445677,-491.36308645,0.00016712,2]
[330311848,1719251445686,-500.0,0.00016712,2]
[330311849,1719251445696,-500.0,0.00016712,2]
[330311850,1719251445707,-500.0,0.00016712,2]
[330311851,1719251445719,-515.20025745,0.00016712,2]
[330311852,1719251445729,-505.67910671,0.00016712,2]
[330311853,1719251445739,-500.0,0.00016712,2]
[330311854,1719251445750,-500.0,0.00016712,2]
[330311855,1719251445760,-500.0,0.00016712,2]
[330311856,1719251445769,-508.52931754,0.00016712,2]
[330311857,1719251445778,-500.0,0.00016712,2]
[330311858,1719251445788,-1620.43,0.00016712,2]
[330311859,1719251445797,-500.0,0.00016712,2]
[330311860,1719251445806,-500.0,0.00016712,2]
[330311861,1719251445815,-500.0,0.00016712,2]
[330311862,1719251445824,-500.0,0.00016712,2]
[330311863,1719251445835,-525.4,0.00016712,2]
[330311864,1719251445844,-500.0,0.00016712,2]
[330311865,1719251445853,-500.0,0.00016712,2]
[330311866,1719251445862,-500.0,0.00016712,2]
[330311867,1719251445872,-500.0,0.00016712,2]
[330311868,1719251445881,-500.0,0.00016712,2]
[330311869,1719251445891,-500.0,0.00016712,2]
[330311870,1719251445900,-500.0,0.00016712,2]
[330311871,1719251445910,-500.0,0.00016712,2]
[330311872,1719251445919,-532.78,0.00016712,2]
[330311873,1719251445928,-500.0,0.00016712,2]
[330311874,1719251445938,-500.0,0.00016712,2]
[330311875,1719251445947,-512.81272887,0.00016712,2]
[330311876,1719251445957,-500.0,0.00016712,2]
[330311877,1719251445967,-500.0,0.00016712,2]
[330311878,1719251445977,-500.0,0.00016712,2]
[330311879,1719251445986,-500.0,0.00016712,2]
[330311880,1719251445998,-500.0,0.00016712,2]
[330311881,1719251446008,-500.0,0.00016712,2]
[330311882,1719251446018,-500.0,0.00016712,2]
[330311883,1719251446028,-607.31,0.00016712,2]
[330311884,1719251446038,-500.0,0.00016712,2]
[330311885,1719251446048,-500.0,0.00016712,2]
[330311886,1719251446058,-500.0,0.00016712,2]
[330311887,1719251446068,-939.39,0.00016712,2]
[330311888,1719251446077,-1074.89,0.00016712,2]
[330311889,1719251446087,-615.51,0.00016712,2]
[330311890,1719251446096,-584.13055359,0.00016712,2]
[330311891,1719251446106,-500.0,0.00016712,2]
[330311892,1719251446115,-500.0,0.00016712,2]
[330311893,1719251446125,-471.47202702,0.00016712,2]
[330311894,1719251446134,-500.0,0.00016712,2]
[330311895,1719251446143,-500.0,0.00016712,2]
[330311896,1719251446153,-500.0,0.00016712,2]
[330311897,1719251446163,-443.64097995,0.00016712,2]
[330311898,1719251446173,-500.0,0.00016712,2]
[330311899,1719251446182,-500.0,0.00016712,2]
[330311900,1719251446191,-500.0,0.00016712,2]
[330311901,1719251446201,-500.0,0.00016712,2]
[330311902,1719251446211,-500.0,0.00016712,2]
[330311903,1719251446221,-500.0,0.00016712,2]
[330311904,1719251446231,-500.0,0.00016712,2]
[330311905,1719251446242,-22657.13,0.00016712,2]
[330311906,1719251446253,-500.0,0.00016712,2]
[330311907,1719251446264,-500.0,0.00016712,2]
[330311908,1719251446273,-500.0,0.00016712,2]
[330311909,1719251446283,-508.10294438,0.00016712,2]
[330311910,1719251446293,-500.0,0.00016712,2]
[330311911,1719251446306,-500.0,0.00016712,2]
[330311912,1719251446316,-500.0,0.00016712,2]
[330311913,1719251446325,-500.0,0.00016712,2]
[330311914,1719251446335,-500.0,0.00016712,2]
[330311915,1719251446345,-1996.65,0.00016712,2]
[330311916,1719251446355,-500.0,0.00016712,2]
[330311917,1719251446365,-500.0,0.00016712,2]
[330311918,1719251446374,-500.0,0.00016712,2]
[330311919,1719251446386,-500.0,0.00016712,2]
[330311920,1719251446396,-500.0,0.00016712,2]
[330311921,1719251446406,-500.0,0.00016712,2]
[330311922,1719251446416,-500.0,0.00016712,2]
[330311923,1719251446426,-504.14,0.00016712,2]
[330311924,1719251446437,-500.0,0.00016712,2]
[330311925,1719251446446,-913.67,0.00016712,2]
[330311926,1719251446456,-500.0,0.00016712,2]
[330311927,1719251446468,-500.0,0.00016712,2]
[330311928,1719251446478,-3715.11,0.00016712,2]
[330311929,1719251446487,-254.38790453,0.00016712,2]
[330311930,1719251446500,-643.91767806,0.00016712,2]
[330311931,1719251446509,-500.0,0.00016712,2]
[330311932,1719251446519,-4111.24,0.00016712,2]
[330311933,1719251446529,-500.0,0.00016712,2]
[330311934,1719251446538,-1046.07,0.00016712,2]
[330311935,1719251446547,-500.0,0.00016712,2]
[330311936,1719251446556,-500.0,0.00016712,2]
[330311937,1719251446566,-500.0,0.00016712,2]
[330311938,1719251446575,-876.36,0.00016712,2]
[330311939,1719251446584,-478.80738534,0.00016712,2]
[330311940,1719251446593,-500.0,0.00016712,2]
[330311941,1719251446603,-500.0,0.00016712,2]
[330311942,1719251446612,-500.0,0.00016712,2]
[330311943,1719251446621,-526.09,0.00016712,2]
[330311944,1719251446630,-500.0,0.00016712,2]
[330311945,1719251446639,-250.54608254,0.00016712,2]
[330311946,1719251446648,-500.0,0.00016712,2]
[330311947,1719251446657,-500.0,0.00016712,2]
[330311948,1719251446666,-500.0,0.00016712,2]
[330311949,1719251446675,-3393.5,0.00016712,2]
[330311950,1719251446685,-500.0,0.00016712,2]
[330311951,1719251446694,-500.0,0.00016712,2]
[330311952,1719251446703,-500.0,0.00016712,2]
[330311953,1719251446713,-651.34,0.00016712,2]
[330311954,1719251446722,-500.0,0.00016712,2]
[330311955,1719251446732,-4099.68,0.00016712,2]
[330311956,1719251446742,-967.71,0.00016712,2]
[330311957,1719251446754,-500.0,0.00016712,2]
[330311958,1719251446763,-3503.0,0.00016712,2]
[330311959,1719251446772,-683.19,0.00016712,2]
[330311960,1719251446782,-519.46,0.00016712,2]
[330311961,1719251446792,-661.17,0.00016712,2]
[330311962,1719251446801,-500.0,0.00016712,2]
[330311963,1719251446810,-500.0,0.00016712,2]
[330311964,1719251446820,-12834.12,0.00016712,2]
[330311965,1719251446831,-1669.95,0.00016712,2]
[330311966,1719251446841,-500.0,0.00016712,2]
[330311967,1719251446850,-9309.85,0.00016712,2]
[330311968,1719251446861,-500.0,0.00016712,2]
[330311970,1719251446870,-500.0,0.00016712,2]
[330311972,1719251446879,-500.0,0.00016712,2]
[330311973,1719251446888,-500.0,0.00016712,2]
[330311975,1719251446897,-500.0,0.00016712,2]
[330311976,1719251446906,-500.0,0.00016712,2]
[330311978,1719251446916,-511.82789799,0.00016712,2]
[330311980,1719251446925,-500.0,0.00016712,2]
[330311981,1719251446934,-205.81766206,0.00016712,2]
[330311983,1719251446944,-500.0,0.00016712,2]
[330311984,1719251446954,-500.0,0.00016712,2]
[330311985,1719251446963,-180.23568312,0.00016712,2]
[330311987,1719251446973,-500.0,0.00016712,2]
[330311988,1719251446982,-505.0900718,0.00016712,2]
[330311990,1719251446991,-500.0,0.00016712,2]
[330311991,1719251447004,-500.0,0.00016712,2]
[330311993,1719251447014,-500.0,0.00016712,2]
[330311994,1719251447024,-500.0,0.00016712,2]
[330311996,1719251447033,-770.9,0.00016712,2]
[330311997,1719251447042,-500.0,0.00016712,2]
[330311999,1719251447051,-500.0,0.00016712,2]
[330312000,1719251447061,-500.0,0.00016712,2]
[330312002,1719251447071,-500.0,0.00016712,2]
[330312003,1719251447081,-500.0,0.00016712,2]
[330312005,1719251447091,-500.0,0.00016712,2]
[330312006,1719251447101,-395.23605556,0.00016712,2]
[330312008,1719251447111,-500.0,0.00016712,2]
[330312009,1719251447121,-500.0,0.00016712,2]
[330312011,1719251447131,-500.0,0.00016712,2]
[330312012,1719251447141,-500.0,0.00016712,2]
[330312014,1719251447151,-500.0,0.00016712,2]
[330312016,1719251447162,-500.0,0.00016712,2]
[330312017,1719251447172,-500.0,0.00016712,2]
[330312019,1719251447182,-500.0,0.00016712,2]
[330312020,1719251447192,-936.19,0.00016712,2]
[330312022,1719251447202,-500.0,0.00016712,2]
[330312023,1719251447212,-705.8,0.00016712,2]
[330312025,1719251447223,-791.6,0.00016712,2]
[330312026,1719251447233,-500.0,0.00016712,2]
[330312028,1719251447243,-500.0,0.00016712,2]
[330312030,1719251447261,-500.0,0.00016712,2]
[330312031,1719251447270,-2153.78,0.00016712,2]
[330312033,1719251447280,-500.0,0.00016712,2]
[330312035,1719251447289,-703.9,0.00016712,2]
[330312036,1719251447304,-500.0,0.00016712,2]
[330312037,1719251447313,-500.0,0.00016712,2]
[330312039,1719251447322,-500.0,0.00016712,2]
[330312041,1719251447332,-559.18,0.00016712,2]
[330312042,1719251447342,-3155.79,0.00016712,2]
[330312044,1719251447352,-2543.29,0.00016712,2]
[330312051,1719251447473,-500.0,0.00016712,2]
[330312053,1719251447483,-1468.61,0.00016712,2]
[330312054,1719251447493,-500.0,0.00016712,2]
[330312055,1719251447511,-500.0,0.00016712,2]
[330312057,1719251447520,-500.0,0.00016712,2]
[330312058,1719251447534,-500.0,0.00016712,2]
[330312059,1719251447543,-993.14,0.00016712,2]
[330312061,1719251447552,-500.0,0.00016712,2]
[330312062,1719251447562,-1705.67,0.00016712,2]
[330312063,1719251447572,-500.0,0.00016712,2]
[330312064,1719251447581,-503.38,0.00016712,2]
[330312065,1719251447591,-500.0,0.00016712,2]
[330312066,1719251447601,-6314.81,0.00016712,2]
[330312067,1719251447611,-408.52951471,0.00016712,2]
[330312068,1719251447620,-500.92910979,0.00016712,2]
[330312069,1719251447630,-500.0,0.00016712,2]
[330312070,1719251447639,-500.0,0.00016712,2]
[330312071,1719251447648,-9673.32,0.00016712,2]
[330312072,1719251447658,-500.0,0.00016712,2]
[330312073,1719251447667,-500.0,0.00016712,2]
[330312074,1719251447676,-809.04,0.00016712,2]
[330312075,1719251447686,-500.0,0.00016712,2]
[330312076,1719251447695,-500.0,0.00016712,2]
[330312077,1719251447705,-500.0,0.00016712,2]
[330312078,1719251447719,-500.0,0.00016712,2]
[330312079,1719251447728,-515.06,0.00016712,2]
[330312080,1719251447738,-500.0,0.00016712,2]
[330312081,1719251447754,-628.37,0.00016712,2]
[330312082,1719251447765,-500.0,0.00016712,2]
[330312083,1719251447775,-500.0,0.00016712,2]
[330312084,1719251447784,-586.32,0.00016712,2]
[330312085,1719251447793,-2996.61,0.00016712,2]
[330312086,1719251447803,-500.0,0.00016712,2]
[330312087,1719251447813,-500.0,0.00016712,2]
[330312088,1719251447823,-510.26394449,0.00016712,2]
[330312089,1719251447832,-500.0,0.00016712,2]
[330312090,1719251447842,-500.0,0.00016712,2]
[330312091,1719251447851,-500.0,0.00016712,2]
[330312092,1719251447860,-500.0,0.00016712,2]
[330312093,1719251447869,-500.0,0.00016712,2]
[330312094,1719251447879,-257.49294633,0.00016712,2]
[330312095,1719251447888,-500.0,0.00016712,2]
[330312096,1719251447898,-500.0,0.00016712,2]
[330312097,1719251447907,-541.46171201,0.00016712,2]
[330312098,1719251447917,-500.0,0.00016712,2]
[330312099,1719251447927,-500.0,0.00016712,2]
[330312100,1719251447936,-394.80475809,0.00016948,2]
[330312101,1719251447945,-652.78,0.00016984,2]
[330312102,1719251447955,-652.78,0.00016985,2]
[330312103,1719251447965,-652.78,0.00016985,2]
[330312104,1719251447974,-652.78,0.00016985,2]
[330312105,1719251447983,-500.0,0.00016985,2]
[330312106,1719251447992,-500.0,0.00016985,2]
[330312107,1719251448010,-2203.17,0.00016985,2]
[330312108,1719251448019,-2203.17,0.00016985,2]
[330312109,1719251448029,-2203.17,0.00016985,2]
[330312110,1719251448040,-2203.17,0.00016985,2]
[330312111,1719251448049,-323.93403992,0.00016986,2]
[330312112,1719251448058,-500.0,0.00016986,2]
[330312113,1719251448068,-500.0,0.00016986,2]
[330312114,1719251448077,-500.0,0.00016986,2]
[330312115,1719251448086,-500.0,0.00016986,2]
[330312116,1719251448095,-512.26137028,0.00016986,2]
[330312117,1719251448104,-250.0,0.00016986,2]
[330312118,1719251448113,-618.59,0.00016986,2]
[330312119,1719251448123,-500.0,0.00016986,2]
[330312120,1719251448132,-500.0,0.00016986,2]
[330312121,1719251448142,-500.0,0.00016986,2]
[330312122,1719251448151,-500.0,0.00016986,2]
[330312123,1719251448162,-1764.04,0.00016986,2]
[330312124,1719251448171,-500.0,0.00016986,2]
[330312126,1719251448182,-500.0,0.00016986,2]
[330312127,1719251448192,-500.0,0.00016986,2]
[330312128,1719251448201,-500.0,0.00016986,2]
[330312129,1719251448211,-500.0,0.00016986,2]
[330312130,1719251448221,-500.0,0.00016986,2]
[330312131,1719251448230,-1341.46,0.00016986,2]
[330312132,1719251448240,-500.0,0.00016986,2]
[330312133,1719251448255,-500.0,0.00016986,2]
[330312134,1719251448264,-500.0,0.00016986,2]
[330312135,1719251448273,-500.0,0.00016986,2]
[330312136,1719251448283,-500.0,0.00016986,2]
[330312137,1719251448291,-500.0,0.00016986,2]
[330312138,1719251448301,-613.65,0.00016986,2]
[330312139,1719251448315,-952.36,0.00016986,2]
[330312140,1719251448324,-500.0,0.00016986,2]
[330312141,1719251448334,-500.0,0.00016986,2]
[330312142,1719251448343,-500.0,0.00016986,2]
[330312143,1719251448354,-500.0,0.00016986,2]
[330312144,1719251448363,-500.0,0.00016986,2]
[330312145,1719251448374,-865.51,0.00016986,2]
[330312146,1719251448385,-500.0,0.00016986,2]
[330312147,1719251448395,-500.0,0.00016986,2]
[330312148,1719251448404,-500.0,0.00016986,2]
[330312149,1719251448413,-573.12,0.00016986,2]
[330312150,1719251448423,-500.0,0.00016986,2]
[330312151,1719251448432,-500.0,0.00016986,2]
[330312152,1719251448441,-364.0245495,0.00016986,2]
[330312153,1719251448451,-500.0,0.00016986,2]
[330312154,1719251448460,-500.0,0.00016986,2]
[330312155,1719251448469,-500.0,0.00016986,2]
[330312156,1719251448480,-500.0,0.00016986,2]
[330312157,1719251448490,-500.0,0.00016986,2]
[330312158,1719251448501,-1620.43,0.00016986,2]
[330312159,1719251448510,-500.0,0.00016986,2]
[330312160,1719251448519,-500.0,0.00016986,2]
[330312161,1719251448528,-500.0,0.00016986,2]
[330312162,1719251448538,-525.4,0.00016986,2]
[330312163,1719251448548,-500.0,0.00016986,2]
[330312164,1719251448557,-500.0,0.00016986,2]
[330312165,1719251448567,-500.0,0.00016986,2]
[330312166,1719251448577,-500.0,0.00016986,2]
[330312167,1719251448587,-500.0,0.00016986,2]
[330312168,1719251448596,-500.0,0.00016986,2]
[330312169,1719251448607,-486.27664327,0.00016986,2]
[330312170,1719251448617,-532.78,0.00016986,2]
[330312171,1719251448626,-500.0,0.00016986,2]
[330312172,1719251448636,-500.0,0.00016986,2]
[330312173,1719251448645,-500.0,0.00016986,2]
[330312174,1719251448655,-156.95425407,0.00016986,2]
[330312175,1719251448663,-500.0,0.00016986,2]
[330312176,1719251448673,-500.0,0.00016986,2]
[330312177,1719251448683,-500.0,0.00016986,2]
[330312178,1719251448692,-500.0,0.00016986,2]
[330312179,1719251448702,-465.79759591,0.00016986,2]
[330312180,1719251448712,-500.0,0.00016986,2]
[330312181,1719251448722,-500.0,0.00016986,2]
[330312182,1719251448731,-500.0,0.00016986,2]
[330312183,1719251448741,-939.39,0.00016986,2]
[330312184,1719251448754,-1074.89,0.00016986,2]
[330312185,1719251448763,-615.51,0.00016986,2]
[330312186,1719251448773,-500.0,0.00016986,2]
[330312187,1719251448783,-500.0,0.00016986,2]
[330312188,1719251448793,-500.0,0.00016986,2]
[330312189,1719251448802,-500.0,0.00016986,2]
[330312190,1719251448812,-500.0,0.00016986,2]
[330312191,1719251448821,-500.0,0.00016986,2]
[330312192,1719251448831,-500.0,0.00016986,2]
[330312193,1719251448840,-500.0,0.00016986,2]
[330312194,1719251448850,-500.0,0.00016986,2]
[330312195,1719251448859,-16340.30918677,0.00016986,2]
[330312196,1719251449024,-1089.808679,0.00016986,2]
[330312197,1719251449703,-159.35965211,0.00014176,2]
[330312198,1719251449713,-286.39912426,0.00015117,2]
[330312199,1719251449723,-318.0694556,0.00015968,2]
[330312200,1719251449733,-661.02191693,0.00015989,2]
[330312201,1719251449742,-207.71530322,0.00015999,2]
[330312202,1719251449753,-155.02402872,0.00016408,2]
[330312203,1719251449763,-1401.41,0.00016438,2]
[330312204,1719251449773,-500.0,0.00016438,2]
[330312205,1719251449782,-5734.50848353,0.00016438,2]
[330312206,1719251449792,-500.0,0.00016438,2]
[330312207,1719251449801,-76.61257163,0.00016712,2]
[330312208,1719251449814,-1324.79742837,0.00016712,2]
[330312209,1719251449823,-500.0,0.00016712,2]
[330312210,1719251449832,-500.0,0.00016712,2]
[330312211,1719251449841,-394.80475809,0.00016947,2]
[330312212,1719251449851,-5227.01213423,0.00016986,2]
[330312213,1719251449860,-569.01464762,0.00016986,2]
[330312214,1719251449869,-500.0,0.00016986,2]
[330312215,1719251449879,-500.0,0.00016986,2]
[330312216,1719251449889,-500.0,0.00016986,2]
[330312217,1719251449898,-500.0,0.00016986,2]
[330312218,1719251449907,-500.0,0.00016986,2]
[330312219,1719251449916,-500.0,0.00016986,2]
[330312220,1719251449925,-1996.65,0.00016986,2]
[330312221,1719251449935,-500.0,0.00016986,2]
[330312222,1719251449945,-500.0,0.00016986,2]
[330312223,1719251449954,-502.0582763,0.00016986,2]
[330312224,1719251449964,-503.94912556,0.00016986,2]
[330312225,1719251449974,-500.0,0.00016986,2]
[330312226,1719251449983,-500.0,0.00016986,2]
[330312227,1719251449992,-913.67,0.00016986,2]
[330312228,1719251450004,-437.84879435,0.00016986,2]
[330312229,1719251450013,-3715.11,0.00016986,2]
[330312230,1719251450022,-500.0,0.00016986,2]
[330312231,1719251450032,-4111.24,0.00016986,2]
[330312232,1719251450041,-1046.07,0.00016986,2]
[330312233,1719251450050,-500.0,0.00016986,2]
[330312234,1719251450059,-500.0,0.00016986,2]
[330312235,1719251450068,-500.0,0.00016986,2]
[330312236,1719251450077,-876.36,0.00016986,2]
[330312237,1719251450086,-500.0,0.00016986,2]
[330312238,1719251450095,-500.0,0.00016986,2]
[330312239,1719251450104,-526.09,0.00016986,2]
[330312240,1719251450113,-500.0,0.00016986,2]
[330312241,1719251450123,-500.0,0.00016986,2]
[330312242,1719251450132,-500.0,0.00016986,2]
[330312243,1719251450141,-357.39067463,0.00016986,2]
[330312244,1719251450154,-142.60932537,0.00016986,2]
[330312245,1719251450163,-3393.5,0.00016986,2]
[330312246,1719251450172,-500.0,0.00016986,2]
[330312247,1719251450181,-500.0,0.00016986,2]
[330312248,1719251450190,-164.73872982,0.00016986,2]
[330312249,1719251450666,-565.7746747,0.00016409,2]
[330312250,1719251450675,-500.0,0.00016438,2]
[330312251,1719251450684,-500.0,0.00016438,2]
[330312252,1719251450694,-500.0,0.00016712,2]
[330312253,1719251450703,-486.60127018,0.00016986,2]
[330312254,1719251450714,-500.0,0.00016986,2]
[330312255,1719251450723,-240.64925565,0.00016986,2]
[330312257,1719251490133,157.894736,0.00013699,2]
[330312259,1719251517202,3800.94555472,0.0002966,120]
[330312260,1719251603743,1000.0,0.00014,2]
[330312269,1719251971949,286.4464317,9.999e-05,2]
[330312277,1719252073966,457.45943987,9.999e-05,2]
[330312278,1719252082016,493.29758375,0.00013939,2]
[330312280,1719252098544,157.894736,0.00013699,2]
[330312289,1719252113691,151.0,0.000135,2]
[330312290,1719252117477,457.45943987,0.0001212,2]
[330312298,1719252232187,155.00155002,9.999e-05,2]
[330312299,1719252241192,300.0,0.00014,2]
[330312300,1719252251436,300.0,0.00014,2]
[330312302,1719252301145,300.0,0.00014,2]
[330312303,1719252305325,300.0,0.00014,2]
[330312305,1719252334347,13982.6708063,0.00013124,2]
[330312308,1719252361323,300.0,0.00014,2]
[330312309,1719252418573,431.63538579,0.00013903,2]
[330312310,1719252421250,300.0,0.00014,2]
[330312315,1719252481189,300.0,0.00014,2]
[330312319,1719252601904,-779.17049387,0.00014001,2]
[330312320,1719252601950,-505.2975377,0.00014001,2]
[330312321,1719252601984,-240.1563891,0.00014001,2]
[330312384,1719252633548,-2204.696,0.00014001,2]
[330312386,1719252633560,-3361.70269058,0.00014001,2]
[330312389,1719252633572,-7417.90139432,0.00014001,2]
[330312391,1719252633584,-28956.14566588,0.00014001,2]
[330312393,1719252633594,-6174.34174894,0.00014001,2]
[330312420,1719252639444,-796.57558146,0.00014001,2]
[330312421,1719252639454,-882.94611178,0.00014001,2]
[330312422,1719252639467,-12327.60466633,0.00014001,2]
[330312423,1719252639479,-4017.14867989,0.00014001,2]
[330312424,1719252639489,-1313.011853,0.00014001,2]
[330312426,1719252639500,-597.70730701,0.00014001,2]
[330312428,1719252639510,-155.00155002,0.00014005,2]
[330312430,1719252639520,-155.00232503,0.00014036,2]
[330312431,1719252639530,-26057.44447196,0.00015094,2]
[330312433,1719252639540,-9601.79213166,0.00015095,2]
[330312435,1719252639550,-933.08575257,0.00015095,2]
[330312437,1719252639560,-947.4992689,0.00015096,2]
[330312439,1719252639571,-208.3392434,0.00015096,2]
[330312441,1719252639580,-188.11040753,0.00015112,2]
[330312443,1719252639590,-3923.79380923,0.00015113,2]
[330312445,1719252639599,-1568.46393602,0.00015114,2]
[330312447,1719252639609,-207.71530322,0.00015117,2]
[330312449,1719252639618,-159.35965211,0.00015117,2]
[330312451,1719252639628,-499.09078729,0.00015118,2]
[330312453,1719252639638,-318.0694556,0.00015119,2]
[330312455,1719252639648,-208.78500633,0.00015119,2]
[330312457,1719252639659,-179.54081427,0.00015119,2]
[330312459,1719252639669,-457.45943987,0.00015574,2]
[330312461,1719252639678,-2647.51345546,0.00015575,2]
[330312462,1719252639688,-195.47966853,0.00015576,2]
[330312464,1719252639699,-723.78639686,0.00015577,2]
[330312466,1719252639709,-723.78639686,0.00015577,2]
[330312467,1719252639721,-286.39912426,0.00015577,2]
[330312468,1719252639731,-286.39912426,0.00015893,2]
[330312469,1719252639742,-1631.59658865,0.00015893,2]
[330312470,1719252639752,-876.0,0.00015894,2]
[330312471,1719252639762,-990.65106447,0.00016363,2]
[330312472,1719252639772,-401.65252924,0.00016364,2]
[330312473,1719252639782,-531.11088939,0.00016365,2]
[330312474,1719252639793,-7705.08886111,0.00016365,2]
[330312475,1719252639803,-164.81209326,0.00016366,2]
[330312476,1719252639813,-155.00232503,0.00016366,2]
[330312477,1719252639823,-521.06468489,0.00016366,7]
[330312478,1719252639833,-176.51967579,0.00016366,2]
[330312479,1719252639844,-661.02191693,0.00016366,2]
[330312480,1719252639853,-661.02191693,0.00016366,2]
[330312481,1719252639863,-173.13409302,0.00016366,2]
[330312483,1719252639873,-1913.6932576,0.00016367,2]
[330312485,1719252639883,-2040.81356743,0.00016367,2]
[330312486,1719252639893,-2825.49865465,0.00016368,2]
[330312488,1719252639904,-155.02402872,0.00016368,2]
[330312490,1719252639914,-2181.23318222,0.00016369,2]
[330312491,1719252639923,-634.32497443,0.00016431,2]
[330312492,1719252639933,-526.07440391,0.00016432,2]
[330312493,1719252639942,-155.81496789,0.00016433,2]
[330312494,1719252639952,-565.7746747,0.00016433,2]
[330312495,1719252639963,-155.00232503,0.00016433,2]
[330312496,1719252639972,-284.71803163,0.00016433,2]
[330312497,1719252639981,-402.64531294,0.00016433,2]
[330312498,1719252639990,-239.56788705,0.00016433,2]
[330312499,1719252639999,-209.58388854,0.00016433,2]
[330312500,1719252640008,-212.54377847,0.00016433,2]
[330312501,1719252640018,-416.12116231,0.00016433,2]
[330312502,1719252640028,-383.41055845,0.00016434,2]
[330312503,1719252640037,-373.78265909,0.00016434,2]
[330312504,1719252640046,-373.78265909,0.00016434,2]
[330312505,1719252640055,-500.0,0.00016438,2]
[330312506,1719252640065,-531.22598985,0.00016438,2]
[330312507,1719252640074,-500.0,0.00016438,2]
[330312508,1719252640084,-314.64604994,0.00016438,2]
[330312509,1719252640093,-435.11972779,0.00016438,2]
[330312510,1719252640103,-500.0,0.00016438,2]
[330312511,1719252640113,-470.45611338,0.00016438,2]
[330312512,1719252640123,-500.0,0.00016438,2]
[330312513,1719252640133,-500.0,0.00016438,2]
[330312514,1719252640143,-500.0,0.00016438,2]
[330312515,1719252640154,-500.0,0.00016438,2]
[330312516,1719252640165,-500.0,0.00016438,2]
[330312517,1719252640175,-500.0,0.00016438,2]
[330312518,1719252640186,-500.0,0.00016438,2]
[330312519,1719252640195,-505.82639184,0.00016438,2]
[330312520,1719252640205,-500.0,0.00016438,2]
[330312521,1719252640215,-500.0,0.00016438,2]
[330312522,1719252640224,-500.0,0.00016438,2]
[330312523,1719252640234,-500.0,0.00016438,2]
[330312524,1719252640244,-500.0,0.00016438,2]
[330312525,1719252640253,-500.0,0.00016438,2]
[330312526,1719252640263,-500.0,0.00016438,2]
[330312527,1719252640272,-500.0,0.00016438,2]
[330312528,1719252640282,-502.03797108,0.00016438,2]
[330312529,1719252640292,-500.0,0.00016438,2]
[330312530,1719252640302,-500.0,0.00016438,2]
[330312531,1719252640311,-604.41270518,0.00016438,2]
[330312532,1719252640320,-524.43,0.00016438,2]
[330312533,1719252640329,-500.0,0.00016438,2]
[330312534,1719252640339,-500.0,0.00016438,2]